[Event "Live Chess"]
[Site "Chess.com"]
[Date "2024.06.02"]
[Round "-"]
[White "McFim"]
[Black "juniortay"]
[Result "0-1"]
[WhiteElo "1634"]
[BlackElo "2442"]
[TimeControl "300"]
[EndTime "20:54:20 PDT"]
[Termination "juniortay won by resignation"]

1. e4 {[%clk 0:04:57.7]} 1... e5 {[%clk 0:04:59]} 2. Nf3 {[%clk 0:04:55.9]} 2...
Nf6 {[%clk 0:04:58.4]} 3. Nxe5 {[%clk 0:04:53.6]} 3... Nc6 {[%clk 0:04:57.9]} 4.
Nxc6 {[%clk 0:04:51.9]} 4... dxc6 {[%clk 0:04:57.8]} 5. Nc3 {[%clk 0:04:50.1]}
5... Bc5 {[%clk 0:04:57]} 6. h3 {[%clk 0:04:49.1]} 6... Be6 {[%clk 0:04:50.7]}
7. d3 {[%clk 0:04:47.3]} 7... Qe7 {[%clk 0:04:49.2]} 8. a3 {[%clk 0:04:44.3]}
8... O-O-O {[%clk 0:04:47.6]} 9. Qe2 {[%clk 0:04:41.6]} 9... Bd4 {[%clk
0:04:45]} 10. Bd2 {[%clk 0:04:39.7]} 10... c5 {[%clk 0:04:44.1]} 11. g3 {[%clk
0:04:30.5]} 11... Kb8 {[%clk 0:04:42.3]} 12. Bg2 {[%clk 0:04:28.7]} 12... h6
{[%clk 0:04:37.5]} 13. O-O {[%clk 0:04:26.8]} 13... g5 {[%clk 0:04:34.3]} 14.
Rab1 {[%clk 0:04:13.5]} 14... Qd7 {[%clk 0:04:32.3]} 15. Kh2 {[%clk 0:04:10.8]}
15... Be5 {[%clk 0:04:31.4]} 16. Nd1 {[%clk 0:03:58.4]} 16... c4 {[%clk
0:04:26.8]} 17. Bc3 {[%clk 0:03:49.7]} 17... Bxc3 {[%clk 0:04:23.6]} 18. Nxc3
{[%clk 0:03:43.2]} 18... cxd3 {[%clk 0:04:23]} 19. cxd3 {[%clk 0:03:41.1]} 19...
Qxd3 {[%clk 0:04:22.2]} 20. Rfd1 {[%clk 0:03:30.1]} 20... Qxe2 {[%clk
0:04:18.7]} 21. Nxe2 {[%clk 0:03:28.6]} 21... Bb3 {[%clk 0:04:17.8]} 22. Rxd8+
{[%clk 0:03:25.5]} 22... Rxd8 {[%clk 0:04:17.7]} 23. Nc3 {[%clk 0:02:53]} 23...
Rd2 {[%clk 0:04:13.8]} 24. Kg1 {[%clk 0:02:49.8]} 24... Nd7 {[%clk 0:04:08.1]}
25. Kf1 {[%clk 0:02:39.8]} 25... Ne5 {[%clk 0:04:06.1]} 26. Ke1 {[%clk
0:02:36.2]} 26... Rc2 {[%clk 0:04:00.7]} 27. Rd1 {[%clk 0:02:16.9]} 27... a6
{[%clk 0:03:58.6]} 28. Rd2 {[%clk 0:02:10.1]} 28... Rc1+ {[%clk 0:03:55.7]} 29.
Nd1 {[%clk 0:01:56.2]} 29... Kc8 {[%clk 0:03:33.6]} 30. f4 {[%clk 0:01:54.7]}
30... gxf4 {[%clk 0:03:27.7]} 31. gxf4 {[%clk 0:01:54.6]} 31... Rxd1+ {[%clk
0:03:26.5]} 32. Rxd1 {[%clk 0:01:51.9]} 32... Bxd1 {[%clk 0:03:25.6]} 33. Kxd1
{[%clk 0:01:50.8]} 33... Nd3 {[%clk 0:03:25]} 34. f5 {[%clk 0:01:38]} 34...
Nxb2+ {[%clk 0:03:23.4]} 35. Kc2 {[%clk 0:01:35.3]} 35... Nc4 {[%clk 0:03:22.6]}
36. Kb3 {[%clk 0:01:31.9]} 36... b5 {[%clk 0:03:14.9]} 37. a4 {[%clk 0:01:26.1]}
37... c6 {[%clk 0:03:12.4]} 38. axb5 {[%clk 0:01:24.5]} 38... axb5 {[%clk
0:03:12]} 39. Kb4 {[%clk 0:01:20.1]} 39... Kc7 {[%clk 0:03:11.3]} 40. Kc5 {[%clk
0:01:18.7]} 40... Ne5 {[%clk 0:03:08.9]} 41. Bf1 {[%clk 0:01:15.6]} 41... Nd7+
{[%clk 0:03:03.9]} 42. Kd4 {[%clk 0:01:11.4]} 42... Kd6 {[%clk 0:03:03.3]} 43.
Be2 {[%clk 0:01:07.3]} 43... Ne5 {[%clk 0:03:02.5]} 44. h4 {[%clk 0:01:05.4]}
44... c5+ {[%clk 0:03:01.4]} 45. Ke3 {[%clk 0:01:03.7]} 45... b4 {[%clk
0:02:57.8]} 46. Bd1 {[%clk 0:00:57.2]} 46... c4 {[%clk 0:02:56.1]} 47. Kd4
{[%clk 0:00:54.4]} 47... b3 {[%clk 0:02:54.6]} 48. Kc3 {[%clk 0:00:52.7]} 48...
Kc5 {[%clk 0:02:53.6]} 49. Bh5 {[%clk 0:00:46.8]} 49... f6 {[%clk 0:02:51.1]}
50. Be2 {[%clk 0:00:42.4]} 50... b2 {[%clk 0:02:39.6]} 51. Kxb2 {[%clk
0:00:40.2]} 51... Kd4 {[%clk 0:02:39.2]} 52. Kc2 {[%clk 0:00:34.7]} 52... Kxe4
{[%clk 0:02:34.9]} 53. Kc3 {[%clk 0:00:33.5]} 53... Kxf5 {[%clk 0:02:32.7]} 54.
Kd4 {[%clk 0:00:30.7]} 54... Kf4 {[%clk 0:02:32.1]} 55. Bd1 {[%clk 0:00:25]}
55... Kg3 {[%clk 0:02:29.1]} 56. h5 {[%clk 0:00:23.9]} 56... Kf4 {[%clk
0:02:27.4]} 57. Be2 {[%clk 0:00:20.7]} 57... Kg5 {[%clk 0:02:23.5]} 58. Ke4
{[%clk 0:00:18.1]} 58... c3 {[%clk 0:02:22]} 59. Bd1 {[%clk 0:00:15.5]} 59...
Ng4 {[%clk 0:02:11.8]} 60. Kd3 {[%clk 0:00:14.2]} 60... Nf2+ {[%clk 0:02:10.5]}
61. Kxc3 {[%clk 0:00:11.4]} 61... Nxd1+ {[%clk 0:02:09.7]} 62. Kd2 {[%clk
0:00:10.1]} 62... Kxh5 {[%clk 0:02:07.5]} 0-1

[Event "Live Chess"]
[Site "Chess.com"]
[Date "2024.06.02"]
[Round "-"]
[White "RuslanChessN"]
[Black "Mangoalo"]
[Result "1-0"]
[WhiteElo "1906"]
[BlackElo "1066"]
[TimeControl "300"]
[EndTime "20:55:11 PDT"]
[Termination "RuslanChessN won by resignation"]

1. d4 {[%clk 0:04:57.7]} 1... Nf6 {[%clk 0:04:58]} 2. c4 {[%clk 0:04:56.6]} 2...
e6 {[%clk 0:04:57.9]} 3. Nc3 {[%clk 0:04:55.7]} 3... Bb4 {[%clk 0:04:57.8]} 4.
Qc2 {[%clk 0:04:54.4]} 4... b5 {[%clk 0:04:55]} 5. e4 {[%clk 0:04:48.2]} 5...
bxc4 {[%clk 0:04:53.1]} 6. Bxc4 {[%clk 0:04:46.6]} 6... c6 {[%clk 0:04:51.1]} 7.
Bd3 {[%clk 0:04:31.6]} 7... d5 {[%clk 0:04:47.6]} 8. e5 {[%clk 0:04:30.5]} 8...
Nfd7 {[%clk 0:04:26]} 9. Nf3 {[%clk 0:04:28]} 9... Nb6 {[%clk 0:04:24.1]} 10.
O-O {[%clk 0:04:25.3]} 10... h6 {[%clk 0:04:22.6]} 11. Be3 {[%clk 0:04:22.7]}
11... Ba6 {[%clk 0:04:17.6]} 12. a3 {[%clk 0:04:18.5]} 12... Bxd3 {[%clk
0:04:16.2]} 13. Qxd3 {[%clk 0:04:16.6]} 13... Bxc3 {[%clk 0:04:15.1]} 14. bxc3
{[%clk 0:04:15.6]} 14... N8d7 {[%clk 0:04:12.1]} 15. Nd2 {[%clk 0:04:11.8]}
15... Nc4 {[%clk 0:04:12]} 16. Nxc4 {[%clk 0:04:10.5]} 16... dxc4 {[%clk
0:04:11.9]} 17. Qxc4 {[%clk 0:04:09.6]} 17... Nb6 {[%clk 0:04:11.3]} 18. Qd3
{[%clk 0:04:06.8]} 18... O-O {[%clk 0:04:09]} 19. c4 {[%clk 0:04:03.9]} 19... c5
{[%clk 0:04:04.9]} 20. Rfd1 {[%clk 0:03:49.5]} 20... cxd4 {[%clk 0:04:01.4]} 21.
Bxd4 {[%clk 0:03:48.6]} 21... Na4 {[%clk 0:03:56.1]} 22. Qb3 {[%clk 0:03:39.3]}
22... Qa5 {[%clk 0:03:47]} 23. Qb4 {[%clk 0:03:37.6]} 23... Qxb4 {[%clk
0:03:45.5]} 24. axb4 {[%clk 0:03:36.5]} 24... Nb6 {[%clk 0:03:42]} 1-0

[Event "Live Chess"]
[Site "Chess.com"]
[Date "2024.06.02"]
[Round "-"]
[White "KeithArkell"]
[Black "ShanthamGrarks"]
[Result "1-0"]
[WhiteElo "2437"]
[BlackElo "1922"]
[TimeControl "300"]
[EndTime "20:56:58 PDT"]
[Termination "KeithArkell won by resignation"]

1. d4 {[%clk 0:04:56.5]} 1... e6 {[%clk 0:04:42.1]} 2. Nf3 {[%clk 0:04:53.8]}
2... f5 {[%clk 0:04:41.7]} 3. Bg5 {[%clk 0:04:42]} 3... Be7 {[%clk 0:04:39.2]}
4. Bxe7 {[%clk 0:04:41]} 4... Qxe7 {[%clk 0:04:38.3]} 5. Nbd2 {[%clk 0:04:40.9]}
5... Nf6 {[%clk 0:04:37]} 6. e3 {[%clk 0:04:40.8]} 6... b6 {[%clk 0:04:34.7]} 7.
Bd3 {[%clk 0:04:40.7]} 7... Bb7 {[%clk 0:04:31.6]} 8. c3 {[%clk 0:04:40.6]} 8...
O-O {[%clk 0:04:29.2]} 9. Qc2 {[%clk 0:04:37.1]} 9... d6 {[%clk 0:04:27.8]} 10.
e4 {[%clk 0:04:36.5]} 10... fxe4 {[%clk 0:04:24.9]} 11. Nxe4 {[%clk 0:04:35.7]}
11... Nxe4 {[%clk 0:04:23.7]} 12. Bxe4 {[%clk 0:04:35.1]} 12... Bxe4 {[%clk
0:04:22.8]} 13. Qxe4 {[%clk 0:04:34.7]} 13... Nd7 {[%clk 0:04:21.3]} 14. O-O
{[%clk 0:04:33.5]} 14... Nf6 {[%clk 0:04:18.5]} 15. Qc6 {[%clk 0:04:30.8]} 15...
Qd7 {[%clk 0:04:14.7]} 16. Qxd7 {[%clk 0:04:29.3]} 16... Nxd7 {[%clk 0:04:13.6]}
17. Rae1 {[%clk 0:04:29]} 17... Rae8 {[%clk 0:04:10.8]} 18. Re2 {[%clk
0:04:27.9]} 18... e5 {[%clk 0:04:09.2]} 19. dxe5 {[%clk 0:04:26.6]} 19... Nxe5
{[%clk 0:04:06.9]} 20. Nxe5 {[%clk 0:04:25.8]} 20... Rxe5 {[%clk 0:04:03.4]} 21.
Rxe5 {[%clk 0:04:24.8]} 21... dxe5 {[%clk 0:04:02.7]} 22. Rd1 {[%clk 0:04:24.4]}
22... Rf7 {[%clk 0:03:54.9]} 23. f3 {[%clk 0:04:22.5]} 23... g6 {[%clk
0:03:51.4]} 24. Kf2 {[%clk 0:04:21.3]} 24... Kg7 {[%clk 0:03:50.7]} 25. Ke3
{[%clk 0:04:20.8]} 25... Kf6 {[%clk 0:03:49.8]} 26. Rd8 {[%clk 0:04:15.4]} 26...
a5 {[%clk 0:03:44.1]} 27. Re8 {[%clk 0:04:13.4]} 27... Rd7 {[%clk 0:03:35.6]}
28. h4 {[%clk 0:04:08.5]} 28... Rd1 {[%clk 0:03:29.7]} 29. Rc8 {[%clk
0:04:05.4]} 29... Rd7 {[%clk 0:03:27.6]} 30. Ke4 {[%clk 0:04:03.3]} 30... Rd2
{[%clk 0:03:19.6]} 31. b3 {[%clk 0:03:51.8]} 31... Rxa2 {[%clk 0:03:13]} 32.
Rxc7 {[%clk 0:03:51]} 32... Rxg2 {[%clk 0:03:11.9]} 33. Rc6+ {[%clk 0:03:50]}
33... Ke7 {[%clk 0:03:10.8]} 34. Rxb6 {[%clk 0:03:49.4]} 34... Re2+ {[%clk
0:03:05]} 35. Kd5 {[%clk 0:03:48]} 35... Re3 {[%clk 0:03:01.5]} 36. c4 {[%clk
0:03:47.3]} 36... Rxf3 {[%clk 0:02:59.4]} 37. Kxe5 {[%clk 0:03:46.8]} 37... Rf5+
{[%clk 0:02:50]} 38. Ke4 {[%clk 0:03:35.5]} 38... Rf2 {[%clk 0:02:38.9]} 39.
Rb7+ {[%clk 0:03:31.7]} 39... Kd6 {[%clk 0:02:36.5]} 40. Rxh7 {[%clk 0:03:30.7]}
40... Rb2 {[%clk 0:02:33.2]} 41. Rb7 {[%clk 0:03:29.4]} 41... a4 {[%clk
0:02:32.3]} 42. b4 {[%clk 0:03:28.9]} 42... a3 {[%clk 0:02:31.1]} 43. Kd4 {[%clk
0:03:16.7]} 43... a2 {[%clk 0:02:28.6]} 44. Ra7 {[%clk 0:03:16]} 44... Rxb4
{[%clk 0:02:20.5]} 45. Rxa2 {[%clk 0:03:14.2]} 45... Rb3 {[%clk 0:02:19.4]} 46.
Ra6+ {[%clk 0:03:12.8]} 46... Ke7 {[%clk 0:02:17.6]} 47. Rxg6 {[%clk 0:03:11.7]}
47... Rh3 {[%clk 0:02:16.3]} 48. Rg4 {[%clk 0:03:07.6]} 48... Kd6 {[%clk
0:02:14.7]} 49. c5+ {[%clk 0:03:07.1]} 49... Kc6 {[%clk 0:02:13.7]} 50. Rg6+
{[%clk 0:03:06.4]} 50... Kc7 {[%clk 0:02:12.7]} 51. Rh6 {[%clk 0:03:05.2]} 51...
Ra3 {[%clk 0:02:09.4]} 52. Kc4 {[%clk 0:03:04]} 52... Ra4+ {[%clk 0:02:05.9]}
53. Kd5 {[%clk 0:03:03.3]} 53... Rf4 {[%clk 0:02:03.4]} 54. Rh7+ {[%clk
0:03:02.4]} 54... Kc8 {[%clk 0:02:02.2]} 55. h5 {[%clk 0:03:02]} 55... Rf6
{[%clk 0:02:00.5]} 56. h6 {[%clk 0:02:59.9]} 56... Rg6 {[%clk 0:01:55.1]} 57.
Kc4 {[%clk 0:02:58.8]} 57... Kb8 {[%clk 0:01:53.5]} 58. Kb5 {[%clk 0:02:58]}
58... Kc8 {[%clk 0:01:42.5]} 59. c6 {[%clk 0:02:57.3]} 59... Rg5+ {[%clk
0:01:35.5]} 60. Kb6 {[%clk 0:02:56]} 60... Rg8 {[%clk 0:01:35]} 61. Ra7 {[%clk
0:02:53.9]} 61... Kb8 {[%clk 0:01:32.5]} 62. c7+ {[%clk 0:02:53.2]} 1-0

[Event "Live Chess"]
[Site "Chess.com"]
[Date "2024.06.02"]
[Round "-"]
[White "Mikhail_Golubev"]
[Black "McFim"]
[Result "1-0"]
[WhiteElo "2520"]
[BlackElo "1634"]
[TimeControl "300"]
[EndTime "20:57:07 PDT"]
[Termination "Mikhail_Golubev won by resignation"]

1. e4 {[%clk 0:04:53.1]} 1... c6 {[%clk 0:04:58.5]} 2. d4 {[%clk 0:04:50.4]}
2... d5 {[%clk 0:04:58.4]} 3. e5 {[%clk 0:04:50]} 3... Bf5 {[%clk 0:04:57]} 4.
h4 {[%clk 0:04:49.1]} 4... Be4 {[%clk 0:04:55.7]} 5. Nc3 {[%clk 0:04:32.8]} 5...
h5 {[%clk 0:04:44.3]} 6. Nxe4 {[%clk 0:04:27.4]} 6... dxe4 {[%clk 0:04:44.2]} 7.
e6 {[%clk 0:04:25.6]} 7... Nf6 {[%clk 0:04:35.4]} 8. exf7+ {[%clk 0:04:22.7]}
8... Kxf7 {[%clk 0:04:34.1]} 9. Bc4+ {[%clk 0:04:21.5]} 9... e6 {[%clk
0:04:31.1]} 10. Nh3 {[%clk 0:04:18.9]} 10... Nd5 {[%clk 0:04:22.9]} 11. Ng5+
{[%clk 0:04:16.8]} 11... Ke7 {[%clk 0:04:08.9]} 12. Nxe4 {[%clk 0:04:14.6]}
12... Nd7 {[%clk 0:04:05.5]} 13. O-O {[%clk 0:03:59.9]} 13... N7f6 {[%clk
0:04:03.8]} 14. Ng5 {[%clk 0:03:58.8]} 14... b5 {[%clk 0:03:57.5]} 15. Bb3
{[%clk 0:03:57.2]} 15... Nh7 {[%clk 0:03:41.8]} 16. Qxh5 {[%clk 0:03:50.9]} 1-0

[Event "Live Chess"]
[Site "Chess.com"]
[Date "2024.06.02"]
[Round "-"]
[White "Delacorta"]
[Black "booktrunk"]
[Result "0-1"]
[WhiteElo "1518"]
[BlackElo "1515"]
[TimeControl "300"]
[EndTime "20:59:00 PDT"]
[Termination "booktrunk won by checkmate"]

1. d4 {[%clk 0:04:57]} 1... e6 {[%clk 0:04:59.3]} 2. Nf3 {[%clk 0:04:55.9]} 2...
h6 {[%clk 0:04:58.3]} 3. e3 {[%clk 0:04:55.1]} 3... b6 {[%clk 0:04:56.7]} 4. Bd3
{[%clk 0:04:52]} 4... Bb7 {[%clk 0:04:56.6]} 5. c4 {[%clk 0:04:49.6]} 5... Nf6
{[%clk 0:04:56.5]} 6. Qc2 {[%clk 0:04:48]} 6... Bb4+ {[%clk 0:04:54.9]} 7. Nbd2
{[%clk 0:04:39.7]} 7... Bxd2+ {[%clk 0:04:49.2]} 8. Bxd2 {[%clk 0:04:37.8]} 8...
d6 {[%clk 0:04:47.3]} 9. O-O-O {[%clk 0:04:32.4]} 9... Nbd7 {[%clk 0:04:44.7]}
10. Rde1 {[%clk 0:04:21.6]} 10... Qe7 {[%clk 0:04:41.2]} 11. e4 {[%clk
0:04:19.7]} 11... O-O-O {[%clk 0:04:34.5]} 12. Qa4 {[%clk 0:04:15.4]} 12... Kb8
{[%clk 0:04:32.2]} 13. Bb4 {[%clk 0:04:07]} 13... c5 {[%clk 0:04:30.3]} 14. dxc5
{[%clk 0:04:04.8]} 14... Nxc5 {[%clk 0:04:26.1]} 15. Bc2 {[%clk 0:03:51.1]}
15... Qe8 {[%clk 0:04:21.9]} 16. Qxe8 {[%clk 0:03:47.5]} 16... Rhxe8 {[%clk
0:04:18.3]} 17. Nd4 {[%clk 0:03:42.9]} 17... a5 {[%clk 0:04:11.9]} 18. Bxc5
{[%clk 0:03:40.9]} 18... dxc5 {[%clk 0:04:09.2]} 19. Nb5 {[%clk 0:03:39.3]}
19... Bc6 {[%clk 0:04:01.9]} 20. f3 {[%clk 0:03:37]} 20... Bxb5 {[%clk
0:03:57.9]} 21. cxb5 {[%clk 0:03:35.6]} 21... Rd4 {[%clk 0:03:56.1]} 22. Rd1
{[%clk 0:03:26.5]} 22... Red8 {[%clk 0:03:54.6]} 23. Rxd4 {[%clk 0:03:21.4]}
23... Rxd4 {[%clk 0:03:52.5]} 24. Rd1 {[%clk 0:03:19.1]} 24... Rxd1+ {[%clk
0:03:46.9]} 25. Kxd1 {[%clk 0:03:16.6]} 25... Kc7 {[%clk 0:03:45.7]} 26. a4
{[%clk 0:03:09.3]} 26... Nd7 {[%clk 0:03:44]} 27. f4 {[%clk 0:03:03.1]} 27... g6
{[%clk 0:03:42.2]} 28. e5 {[%clk 0:02:58.2]} 28... g5 {[%clk 0:03:34.8]} 29. g3
{[%clk 0:02:56.4]} 29... gxf4 {[%clk 0:03:33.3]} 30. gxf4 {[%clk 0:02:54.8]}
30... Nf8 {[%clk 0:03:28.7]} 31. Ke2 {[%clk 0:02:52.1]} 31... Kd7 {[%clk
0:03:26.9]} 32. Be4 {[%clk 0:02:48.4]} 32... Ke7 {[%clk 0:03:24.7]} 33. Kd3
{[%clk 0:02:37.5]} 33... f5 {[%clk 0:03:23.1]} 34. exf6+ {[%clk 0:02:32.5]}
34... Kxf6 {[%clk 0:03:21.4]} 35. Ke3 {[%clk 0:02:20.5]} 35... e5 {[%clk
0:03:15.4]} 36. fxe5+ {[%clk 0:02:15.7]} 36... Kxe5 {[%clk 0:03:13.3]} 37. h3
{[%clk 0:02:06.9]} 37... Ne6 {[%clk 0:03:12.3]} 38. Bg2 {[%clk 0:01:44.5]} 38...
Ng5 {[%clk 0:03:07.5]} 39. Kd3 {[%clk 0:01:30.9]} 39... Kf4 {[%clk 0:03:05.5]}
40. Kc4 {[%clk 0:01:25.9]} 40... Kg3 {[%clk 0:03:03.2]} 41. Bf1 {[%clk
0:01:20.3]} 41... Nxh3 {[%clk 0:03:01.6]} 42. Kd5 {[%clk 0:01:08.4]} 42... Nf4+
{[%clk 0:03:00.3]} 43. Kc6 {[%clk 0:01:06.7]} 43... Kf2 {[%clk 0:02:57.7]} 44.
Bc4 {[%clk 0:01:01.4]} 44... h5 {[%clk 0:02:55.8]} 45. Kxb6 {[%clk 0:00:55.1]}
45... h4 {[%clk 0:02:54.8]} 46. Kxc5 {[%clk 0:00:52.9]} 46... h3 {[%clk
0:02:52.6]} 47. b6 {[%clk 0:00:41.5]} 47... h2 {[%clk 0:02:51.4]} 48. Bb5 {[%clk
0:00:40.1]} 48... h1=Q {[%clk 0:02:48.6]} 49. Bc6 {[%clk 0:00:39.2]} 49... Qc1+
{[%clk 0:02:45.9]} 50. Kd6 {[%clk 0:00:38.1]} 50... Qxb2 {[%clk 0:02:42.1]} 51.
b7 {[%clk 0:00:33.7]} 51... Qb6 {[%clk 0:02:38.6]} 52. Kd7 {[%clk 0:00:28.9]}
52... Qd4+ {[%clk 0:02:19.9]} 53. Kc7 {[%clk 0:00:25.2]} 53... Ne6+ {[%clk
0:02:17.4]} 54. Kb8 {[%clk 0:00:19.1]} 54... Qb6 {[%clk 0:02:07.8]} 55. Kc8
{[%clk 0:00:14.8]} 55... Qc7# {[%clk 0:02:05.3]} 0-1

[Event "Live Chess"]
[Site "Chess.com"]
[Date "2024.06.02"]
[Round "-"]
[White "RuslanChessN"]
[Black "KeithArkell"]
[Result "0-1"]
[WhiteElo "1905"]
[BlackElo "2438"]
[TimeControl "300"]
[EndTime "20:59:29 PDT"]
[Termination "KeithArkell won by resignation"]

1. d4 {[%clk 0:04:55.5]} 1... e6 {[%clk 0:04:58.8]} 2. c4 {[%clk 0:04:54.9]}
2... Bb4+ {[%clk 0:04:57.8]} 3. Nc3 {[%clk 0:04:53.5]} 3... c5 {[%clk
0:04:56.6]} 4. e3 {[%clk 0:04:51.7]} 4... Bxc3+ {[%clk 0:04:55.3]} 5. bxc3
{[%clk 0:04:50.6]} 5... f5 {[%clk 0:04:55]} 6. Bd3 {[%clk 0:04:44.5]} 6... Nf6
{[%clk 0:04:54.3]} 7. Nf3 {[%clk 0:04:38.4]} 7... d6 {[%clk 0:04:53.6]} 8. a4
{[%clk 0:04:33.7]} 8... Nc6 {[%clk 0:04:52.7]} 9. Ba3 {[%clk 0:04:30.2]} 9... b6
{[%clk 0:04:50.8]} 10. O-O {[%clk 0:04:25]} 10... e5 {[%clk 0:04:50.1]} 11. Nd2
{[%clk 0:04:12.8]} 11... e4 {[%clk 0:04:47.9]} 12. Bc2 {[%clk 0:04:05.3]} 12...
O-O {[%clk 0:04:46.1]} 13. Nb3 {[%clk 0:03:57.5]} 13... Ba6 {[%clk 0:04:41.9]}
14. Nd2 {[%clk 0:03:47.3]} 14... Qe7 {[%clk 0:04:40.1]} 15. Re1 {[%clk
0:03:29.6]} 15... Na5 {[%clk 0:04:37.5]} 16. Bb3 {[%clk 0:03:26.8]} 16... Qf7
{[%clk 0:04:34.9]} 17. Qe2 {[%clk 0:03:23.5]} 17... Nxb3 {[%clk 0:04:33.3]} 18.
Nxb3 {[%clk 0:03:20.7]} 18... Bxc4 {[%clk 0:04:32.6]} 0-1

[Event "Live Chess"]
[Site "Chess.com"]
[Date "2024.06.02"]
[Round "-"]
[White "IgorSchukin"]
[Black "MagnersCarlsberg2870"]
[Result "1-0"]
[WhiteElo "1772"]
[BlackElo "1822"]
[TimeControl "300"]
[EndTime "20:59:45 PDT"]
[Termination "IgorSchukin won on time"]

1. e4 {[%clk 0:04:56.9]} 1... e5 {[%clk 0:04:54.7]} 2. Nf3 {[%clk 0:04:55.8]}
2... Nf6 {[%clk 0:04:53.4]} 3. Nc3 {[%clk 0:04:55.3]} 3... Nc6 {[%clk
0:04:50.4]} 4. d4 {[%clk 0:04:54.7]} 4... exd4 {[%clk 0:04:48.1]} 5. Nxd4 {[%clk
0:04:54.3]} 5... Nxd4 {[%clk 0:04:47]} 6. Qxd4 {[%clk 0:04:52.8]} 6... c5 {[%clk
0:04:31.2]} 7. Qd3 {[%clk 0:04:50.8]} 7... Qa5 {[%clk 0:04:27.2]} 8. Bd2 {[%clk
0:04:39]} 8... Qd8 {[%clk 0:04:15.5]} 9. e5 {[%clk 0:04:32.3]} 9... Ng4 {[%clk
0:04:01.7]} 10. f4 {[%clk 0:04:26.2]} 10... f6 {[%clk 0:03:55.8]} 11. h3 {[%clk
0:04:22.9]} 11... Nh6 {[%clk 0:03:51.8]} 12. O-O-O {[%clk 0:04:03.7]} 12... Be7
{[%clk 0:03:44.9]} 13. Nd5 {[%clk 0:03:56.9]} 13... O-O {[%clk 0:03:41.1]} 14.
g4 {[%clk 0:03:50.8]} 14... fxe5 {[%clk 0:03:24.8]} 15. fxe5 {[%clk 0:03:48.9]}
15... Nf7 {[%clk 0:03:22.3]} 16. Bc3 {[%clk 0:03:35.8]} 16... c4 {[%clk
0:03:15]} 17. Qxc4 {[%clk 0:03:30.5]} 17... b5 {[%clk 0:03:14]} 18. Qxb5 {[%clk
0:03:21.9]} 18... Bg5+ {[%clk 0:03:11.6]} 19. Kb1 {[%clk 0:03:20]} 19... a6
{[%clk 0:02:56.5]} 20. Qc4 {[%clk 0:03:15.4]} 20... Bb7 {[%clk 0:02:55.1]} 21.
Bg2 {[%clk 0:03:08.2]} 21... Rc8 {[%clk 0:02:53.5]} 22. Qb3 {[%clk 0:03:05.3]}
22... Rb8 {[%clk 0:02:37.6]} 23. Qa4 {[%clk 0:02:59.1]} 23... Bc6 {[%clk
0:02:28]} 24. Qxa6 {[%clk 0:02:43.6]} 24... Ra8 {[%clk 0:02:06.7]} 25. Qc4
{[%clk 0:02:36.8]} 25... Qb8 {[%clk 0:02:00.5]} 26. h4 {[%clk 0:02:26.1]} 26...
Bd8 {[%clk 0:01:49.2]} 27. g5 {[%clk 0:02:10]} 27... Nxe5 {[%clk 0:01:47.4]} 28.
Ne7+ {[%clk 0:01:35.8]} 28... Kh8 {[%clk 0:01:45.1]} 29. Nxc6 {[%clk 0:01:26.2]}
29... Nxc4 {[%clk 0:01:41.4]} 30. Nxb8 {[%clk 0:01:23.9]} 30... Rxb8 {[%clk
0:01:40.2]} 31. Rxd7 {[%clk 0:01:14.5]} 31... Rg8 {[%clk 0:01:21.7]} 32. Bd5
{[%clk 0:01:11.9]} 32... Nb6 {[%clk 0:01:16.2]} 33. Bxg8 {[%clk 0:00:52.7]}
33... Nxd7 {[%clk 0:01:14.4]} 34. Bb3 {[%clk 0:00:43.5]} 34... Nc5 {[%clk
0:01:00.6]} 35. Re1 {[%clk 0:00:34.5]} 35... Bb6 {[%clk 0:00:25.9]} 36. Re7
{[%clk 0:00:26.1]} 36... Nxb3 {[%clk 0:00:24.8]} 37. Bxg7+ {[%clk 0:00:23.9]}
37... Kg8 {[%clk 0:00:23]} 38. axb3 {[%clk 0:00:22.9]} 38... Bc5 {[%clk
0:00:16.3]} 39. Rd7 {[%clk 0:00:21.3]} 39... Re8 {[%clk 0:00:11.6]} 40. Bf6
{[%clk 0:00:15.9]} 40... Re1+ {[%clk 0:00:10.1]} 41. Ka2 {[%clk 0:00:14.7]}
41... Re8 {[%clk 0:00:08]} 42. Rd8 {[%clk 0:00:13.1]} 42... Rxd8 {[%clk
0:00:06.7]} 43. Bxd8 {[%clk 0:00:12.8]} 43... Kf7 {[%clk 0:00:04.9]} 44. c3
{[%clk 0:00:12.2]} 44... Kg6 {[%clk 0:00:04]} 45. b4 {[%clk 0:00:10.5]} 45...
Ba7 {[%clk 0:00:02.2]} 46. Kb3 {[%clk 0:00:09.8]} 46... Kh5 {[%clk 0:00:01.2]}
47. c4 {[%clk 0:00:08.6]} 1-0